bitfinex/quotes_SOLUSD_20251120
["timestamp","ask_amount","ask_price","bid_price","bid_amount"]
[1763678782392,54.99879414,136.73,136.65,0.14216157]
[1763678782608,36.73116486,136.71,136.66,1.74]
[1763678783011,36.99116486,136.71,136.66,1.74]
[1763678783327,36.99116486,136.71,136.67,0.7]
[1763678783521,18.12096,136.68,136.67,0.7]
[1763678783830,44.30624796,136.71,136.67,2.44]
[1763678784230,44.04624796,136.71,136.67,2.44]
[1763678784527,75.52398901,136.71,136.68,0.7]
[1763678784725,68.20890591,136.71,136.68,0.7]
[1763678785734,8.09766278,136.69,136.68,0.7]
[1763678786106,68.20890591,136.71,136.69,2.81902913]
[1763678786305,68.20890591,136.71,136.69,3.51902913]
[1763678786507,38.79250648,136.71,136.69,3.51902913]
[1763678787535,38.29250648,136.71,136.69,3.51902913]
[1763678787718,28.25078609,136.71,136.69,3.51902913]
[1763678787918,7.31421884,136.72,136.69,3.51902913]
[1763678788113,18.12096,136.7,136.69,3.51902913]
[1763678789825,7.31421884,136.72,136.69,3.51902913]
[1763678791014,38.83660067,136.72,136.69,3.51902913]
[1763678791234,29.60419842,136.72,136.69,0.7]
[1763678791543,36.97410469,136.73,136.69,0.7]
[1763678791731,18.12096,136.7,136.69,0.71]
[1763678791909,36.97410469,136.73,136.69,0.71]
[1763678792109,4.86924827,136.72,136.69,0.71]
[1763678792341,44.2879486,136.73,136.69,0.71]
[1763678792913,36.71410469,136.73,136.69,0.71]
[1763678793710,7.57328552,136.74,136.69,0.71]
[1763678793910,8.10342076,136.71,136.69,0.71]
[1763678794141,7.57328552,136.74,136.69,0.71]
[1763678794352,7.31261425,136.75,136.69,0.71]
[1763678794518,12.17820057,136.75,136.69,0.71]
[1763678795017,12.43820057,136.75,136.69,0.71]
[1763678795930,8.14160074,136.71,136.69,0.71]
[1763678796138,7.31325435,136.74,136.69,0.71]
[1763678796319,16.69348227,136.74,136.71,7.53087837]
[1763678797023,53.31279637,136.74,136.71,7.53087837]
[1763678797426,0.26,136.73,136.71,7.53087837]
[1763678797837,68.04768045,136.74,136.72,0.71]
[1763678798050,66.24065547,136.74,136.72,0.71]
[1763678798243,18.12096,136.72,136.71,7.53087837]
[1763678800053,39.69963416,136.74,136.71,7.53087837]
[1763678800253,0.66,136.73,136.71,7.53087837]
[1763678800557,39.03963416,136.74,136.71,8.24087837]
[1763678800558,39.69963416,136.74,136.71,8.24087837]
[1763678800933,39.03963416,136.74,136.71,7.53087837]
[1763678801131,0.66,136.73,136.71,7.53087837]
[1763678801373,39.03963416,136.74,136.73,4.85447781]
[1763678801734,39.03963416,136.74,136.69,0.71]
[1763678802152,8.11006877,136.71,136.69,0.71]
[1763678803363,39.03963416,136.74,136.69,0.71]
[1763678803560,39.34963416,136.74,136.69,0.71]
[1763678805441,39.03963416,136.74,136.69,0.71]
[1763678805650,0.31,136.73,136.69,0.71]
[1763678805851,39.03963416,136.74,136.69,0.71]
[1763678806049,39.34963416,136.74,136.69,0.71]
[1763678806244,39.03963416,136.74,136.69,0.71]
[1763678806454,22.22956544,136.74,136.69,0.71]
[1763678807734,4.88071514,136.73,136.69,0.71]
[1763678807956,29.54277657,136.74,136.69,0.71]
[1763678808165,22.22956544,136.74,136.69,0.71]
[1763678808465,0.31,136.79,136.7,9.93098926]
[1763678808640,0.31,136.81,136.7,9.93098926]
[1763678808972,0.31,136.8,136.72,9.93098926]
[1763678809159,18.12096,136.77,136.74,0.14216157]
[1763678809353,18.12096,136.77,136.75,1.74]
[1763678809553,18.12096,136.77,136.75,2.45]
[1763678809744,18.12096,136.77,136.76,0.71]
[1763678810268,9.3662867,136.8,136.76,0.71]
[1763678810461,18.12096,136.78,136.76,0.71]
[1763678811541,10.6953367,136.78,136.76,0.71]
[1763678812568,0.66083873,136.78,136.76,0.71]
[1763678812742,12.19468335,136.8,136.76,0.71]
[1763678812949,21.60350375,136.8,136.76,0.71]
[1763678813151,4.88462059,136.79,136.76,0.71]
[1763678813363,12.50462843,136.8,136.76,0.71]
[1763678814661,8.07592883,136.77,136.76,0.71]
[1763678814858,4.88462059,136.79,136.76,0.71]
[1763678815174,12.50462843,136.8,136.76,0.71]
[1763678816051,5.19462059,136.8,136.76,0.71]
[1763678816451,18.12096,136.77,136.76,0.71]
[1763678816661,7.31012039,136.8,136.71,0.14216157]
[1763678816968,7.31012039,136.8,136.72,2.39]
[1763678817175,25.58497419,136.8,136.72,2.39]
[1763678817373,25.58497419,136.8,136.73,0.65]
[1763678818558,8.13720629,136.76,136.73,0.65]
[1763678818760,7.31071606,136.79,136.73,0.65]
[1763678820378,25.58479532,136.8,136.73,0.65]
[1763678820573,18.12096,136.77,136.73,0.65]
[1763678820778,8.10813652,136.77,136.73,0.65]
[1763678821254,35.0462642,136.8,136.72,0.65]
[1763678821672,26.56023809,136.8,136.72,0.65]
[1763678822664,8.15114575,136.75,136.72,0.65]
[1763678822872,36.05168076,136.79,136.72,0.65]
[1763678823987,25.58853633,136.78,136.72,0.65]
[1763678824174,62.08880728,136.78,136.64,2.93502586]
[1763678824380,62.08880728,136.78,136.7,0.65]
[1763678824678,18.12096,136.75,136.7,0.65]
[1763678824862,79.68880728,136.78,136.7,0.65]
[1763678826554,68.26960568,136.78,136.7,0.65]
[1763678826770,18.12096,136.75,136.7,0.65]
[1763678826971,12.3962794,136.8,136.71,0.14216157]
[1763678827164,6.14743577,136.79,136.72,0.65]
[1763678827958,22.91898462,136.8,136.72,0.65]
[1763678828268,13.45751574,136.8,136.72,0.65]
[1763678828982,8.15908614,136.77,136.72,0.65]
[1763678829161,4.91850052,136.79,136.73,0.14216157]
[1763678829355,12.22858049,136.8,136.73,0.14216157]
[1763678829663,12.22858049,136.8,136.74,0.65]
[1763678830170,12.22858049,136.8,136.74,2.39]
[1763678830372,18.37601626,136.8,136.74,2.39]
[1763678830575,27.947877,136.8,136.75,0.65]
[1763678830774,4.91850052,136.79,136.75,0.65]
[1763678830960,8.13209656,136.77,136.75,0.65]
[1763678831159,4.91850052,136.79,136.75,0.65]
[1763678831762,23.02937648,136.8,136.79,4.99292388]
[1763678832256,23.02937648,136.8,136.76,0.65]
[1763678833589,23.02937648,136.8,136.74,1.74]
[1763678833590,6.14743577,136.79,136.68,2.93416467]
[1763678833764,6.14743577,136.77,136.72,0.65]
[1763678834289,6.14743577,136.76,136.7,0.65]
[1763678834583,7.31314904,136.74,136.7,0.65]
[1763678836889,6.14743577,136.75,136.74,6.89199444]
[1763678837384,18.12096,136.73,136.7,0.65]
[1763678837583,18.12096,136.72,136.7,0.65]
[1763678837788,18.12096,136.71,136.7,0.65]
[1763678839295,7.31359709,136.74,136.7,0.65]
[1763678839978,21.74597898,136.76,136.7,0.65]
[1763678840390,7.31207955,136.76,136.7,0.65]
[1763678841879,36.14347121,136.77,136.72,0.68]
[1763678842786,43.45501613,136.77,136.72,0.68]
[1763678843293,8.16868533,136.74,136.72,0.68]
[1763678843596,43.45501613,136.77,136.71,0.68]
[1763678843785,4.92812888,136.76,136.71,0.68]
[1763678843983,12.24030069,136.76,136.71,0.68]
[1763678844578,4.92812888,136.75,136.71,0.68]
[1763678845879,41.55823493,136.75,136.71,0.68]
[1763678846084,4.92812888,136.74,136.71,0.68]
[1763678846883,7.31237215,136.76,136.74,0.51253948]
[1763678847283,7.31237215,136.76,136.71,0.68]
[1763678847485,8.15419081,136.73,136.72,0.68]
[1763678847904,36.63010605,136.75,136.72,0.68]
[1763678848102,7.31237215,136.76,136.72,0.68]
[1763678848411,32.17874782,136.79,136.72,0.68]
[1763678848412,13.90170873,136.79,136.72,0.68]
[1763678848704,16.8820979,136.8,136.72,0.68]
[1763678849299,9.57186074,136.8,136.73,0.14216157]
[1763678849481,58.78362721,136.81,136.74,0.68]
[1763678849678,68.21232801,136.81,136.74,0.68]
[1763678849877,31.62834114,136.81,136.74,0.68]
[1763678850190,43.99077351,136.83,136.74,0.68]
[1763678850579,36.68228493,136.83,136.75,9.93098926]
[1763678850783,36.68228493,136.83,136.76,1.74]
[1763678851105,43.99063336,136.83,136.77,0.14216157]
[1763678851282,66.03407842,136.83,136.77,0.71]
[1763678851482,18.12096,136.8,136.77,0.71]
[1763678851780,29.35179349,136.83,136.77,0.71]
[1763678852796,57.30990532,136.83,136.77,0.71]
[1763678853381,65.48278435,136.83,136.77,0.71]
[1763678853575,8.16157387,136.8,136.77,0.71]
[1763678853792,57.30990532,136.83,136.77,0.71]
[1763678854024,57.30990532,136.83,136.77,0.69]
[1763678854206,93.91287471,136.83,136.77,0.69]
[1763678855595,18.12096,136.8,136.77,0.69]
[1763678855790,8.15135821,136.8,136.77,0.69]
[1763678855985,93.91287471,136.83,136.77,0.69]
[1763678856988,85.29949992,136.83,136.77,0.69]
[1763678857779,85.29949992,136.83,136.77,0.71]
[1763678857985,92.60784835,136.83,136.77,0.71]
[1763678858907,4.92626709,136.82,136.77,0.71]
[1763678859087,4.92626709,136.81,136.77,0.71]
[1763678859290,7.30994093,136.81,136.77,0.71]
[1763678859487,12.23620802,136.81,136.77,0.71]
[1763678859705,7.30994093,136.81,136.77,0.71]
[1763678859884,8.07453735,136.78,136.77,0.71]
[1763678860079,4.92626709,136.8,136.77,0.71]
[1763678860284,7.30994093,136.81,136.77,0.71]
[1763678860584,4.92626709,136.8,136.77,0.71]
[1763678860790,7.30994093,136.81,136.77,0.71]
[1763678861897,4.92626709,136.82,136.81,5.8812114]
[1763678862303,4.92626709,136.82,136.74,1.88216157]
[1763678862489,4.92626709,136.82,136.81,0.71]
[1763678862691,4.92626709,136.82,136.75,9.93098926]
[1763678862885,4.92626709,136.82,136.75,0.14216157]
[1763678863081,4.92626709,136.82,136.76,1.74]
[1763678863281,12.23516812,136.82,136.76,1.74]
[1763678863511,4.92626709,136.82,136.76,1.74]
[1763678864110,8.15651121,136.8,136.76,1.74]
[1763678864283,12.23515862,136.82,136.76,1.74]
[1763678864486,12.23515862,136.82,136.77,1.74]
[1763678864912,12.23515862,136.82,136.78,0.71]
[1763678866988,31.1156835,136.83,136.78,0.71]
[1763678868019,8.12822506,136.8,136.78,0.71]
[1763678868611,0.69,136.81,136.76,1.74]
[1763678868800,0.69,136.81,136.78,0.71]
[1763678869520,0.69,136.83,136.78,0.71]
[1763678869707,26.26357883,136.86,136.78,0.71]
[1763678869906,0.69,136.85,136.78,0.71]
[1763678870102,9.34090627,136.85,136.78,0.71]
[1763678870309,0.69,136.82,136.78,0.71]
[1763678872123,18.12096,136.83,136.82,13.98112916]
[1763678872629,18.12096,136.82,136.79,0.67]
[1763678873203,18.12096,136.81,136.79,0.67]
[1763678873618,18.12096,136.81,136.79,2.41]
[1763678873819,18.12096,136.82,136.8,0.67]
[1763678874412,8.16072116,136.82,136.8,0.67]
[1763678874596,7.30750289,136.85,136.8,0.67]
[1763678874925,7.34750289,136.85,136.8,0.67]
[1763678875424,7.30750289,136.85,136.8,0.67]
[1763678875623,7.34750289,136.85,136.8,0.67]
[1763678875805,16.73200625,136.85,136.8,0.67]
[1763678876308,18.12096,136.82,136.8,0.67]
[1763678876518,7.30695643,136.86,136.8,0.67]
[1763678876738,7.30633475,136.87,136.8,0.67]
[1763678877021,9.40696497,136.87,136.8,0.67]
[1763678877220,21.84600168,136.88,136.81,0.14216157]
[1763678877421,21.84600168,136.88,136.82,0.67]
[1763678877815,18.12096,136.85,136.82,0.67]
[1763678878001,21.84600168,136.88,136.83,0.14216157]
[1763678878208,18.12096,136.85,136.84,1.74]
[1763678878431,21.84600168,136.88,136.84,2.41]
[1763678878610,21.84600168,136.88,136.85,0.67]
[1763678879144,4.90892592,136.87,136.85,2.41]
[1763678879644,4.90892592,136.87,136.86,0.81216157]
[1763678879834,9.46024479,136.88,136.86,0.81216157]
[1763678880241,4.90892592,136.88,136.87,9.93098926]
[1763678880421,0.66,136.95,136.87,11.67098926]
[1763678880740,18.12096,136.92,136.89,0.14216157]
[1763678880916,27.62888695,136.92,136.88,2.41]
[1763678881118,27.62888695,136.92,136.89,0.67]
[1763678881320,9.50792695,136.92,136.9,1.74]
[1763678881631,36.90276251,136.95,136.9,1.74]
[1763678881821,36.24276251,136.95,136.91,0.67]
[1763678882026,18.12096,136.92,136.91,0.67]
[1763678882225,44.21063896,136.96,136.91,0.67]
[1763678882420,47.11036343,136.96,136.91,0.67]
[1763678882621,10.20127806,136.96,136.91,0.67]
[1763678882908,9.54127806,136.96,136.91,0.67]
[1763678883136,36.81918478,136.98,136.91,0.67]
[1763678883332,0.66,136.97,136.91,0.67]
[1763678884243,18.12096,136.95,136.91,0.67]
[1763678884611,8.09010193,136.95,136.91,0.67]
[1763678884812,7.96113876,136.97,136.91,0.67]
[1763678885931,29.37516854,136.97,136.91,0.67]
[1763678886437,0.66,136.97,136.92,1.74]
[1763678886638,8.09891635,136.95,136.93,0.67]
[1763678887133,0.66,136.97,136.93,0.67]
[1763678887333,7.30082257,136.98,136.97,7.19479846]
[1763678887838,16.72335085,136.98,136.93,0.67]
[1763678888150,9.42252828,136.98,136.93,0.67]
[1763678888317,7.2998067,136.99,136.93,0.67]
[1763678888514,18.12096,136.96,136.93,0.67]
[1763678888730,7.2998067,136.99,136.93,0.67]
[1763678889444,0.1,136.98,136.93,0.67]
[1763678890220,16.96045207,136.98,136.93,0.67]
[1763678890543,7.40050274,136.98,136.93,0.67]
[1763678890735,36.84640068,137.01,136.93,0.67]
[1763678890941,36.81366025,137.0,136.93,0.67]
[1763678891130,36.84640068,137.01,136.93,0.67]
[1763678892232,18.24817518,137.0,136.93,0.67]
[1763678892549,4.87711728,136.99,136.93,0.67]
[1763678892746,46.38740683,137.0,136.93,0.67]
[1763678893041,67.94131631,137.0,136.93,0.67]
[1763678893942,75.24058638,137.0,136.93,0.67]
[1763678894150,31.12765606,137.0,136.93,0.67]
[1763678894334,44.14525255,137.01,136.93,0.67]
[1763678894528,7.29885187,137.01,136.94,0.14216157]
[1763678894934,50.84049422,137.03,136.95,0.67]
[1763678895127,60.7206863,137.03,136.95,0.67]
[1763678895346,82.71662849,137.03,136.95,0.67]
[1763678895824,82.71662849,137.03,136.96,0.14216157]
[1763678895825,31.87613427,137.03,136.96,0.14216157]
[1763678896024,43.36778018,137.04,136.97,1.74]
[1763678896343,43.36778018,137.04,136.97,2.41]
[1763678896519,7.29714884,137.04,136.98,0.67]
[1763678896920,36.61663538,137.05,136.98,0.67]
[1763678897134,46.50973873,137.05,136.98,0.67]
[1763678897345,9.89310335,137.05,136.98,0.67]
[1763678897548,54.52127358,137.06,136.98,0.67]
[1763678897934,7.29660707,137.05,136.98,0.67]
[1763678898651,43.77083231,137.05,136.98,0.67]
[1763678899028,18.12096,137.02,136.98,0.67]
[1763678900042,58.7363644,137.05,136.98,0.67]
[1763678900043,18.12096,137.01,136.98,0.67]
[1763678900550,18.12096,137.02,136.99,0.14216157]
[1763678900853,18.12096,137.02,136.98,0.67]
[1763678901155,7.29735345,137.04,136.98,0.67]
[1763678902541,7.29735345,137.04,136.94,9.78882769]
[1763678902542,40.33927083,137.05,137.04,1e-08]
[1763678902847,40.33927083,137.05,136.94,0.66]
[1763678902848,50.0,137.03,136.94,0.66]
[1763678903051,0.14216157,137.02,136.86,3.59008094]
[1763678903253,57.363,136.98,136.87,0.66]
[1763678903421,0.14216157,137.0,136.79,17.78]
[1763678903422,50.0,136.96,136.82,0.12]
[1763678903625,50.0,136.96,136.79,17.78]
[1763678903626,0.14216157,136.94,136.8,0.66]
[1763678903827,0.14216157,136.92,136.81,1.74]
[1763678904076,0.14216157,136.92,136.8,0.66]
[1763678904077,7.363,136.89,136.8,0.66]
[1763678904426,17.78,136.88,136.79,0.2]
[1763678904631,25.143,136.88,136.79,0.2]
[1763678904832,4.86565517,136.87,136.79,0.86]
[1763678905050,4.86565517,136.89,136.79,0.86]
[1763678905254,25.56610663,136.9,136.81,0.14216157]
[1763678905445,7.30375018,136.92,136.81,9.93098926]
[1763678905650,7.30375018,136.92,136.83,0.14216157]
[1763678905835,3.82640243,136.89,136.83,0.14216157]
[1763678906037,3.82640243,136.89,136.84,0.66]
[1763678906933,18.12096,136.87,136.84,0.66]
[1763678907146,18.12096,136.86,136.82,0.66]
[1763678907352,11.13157742,136.89,136.81,1.74]
[1763678907555,11.13157742,136.89,136.86,12.06108544]
[1763678908055,11.13157742,136.89,136.82,0.66]
[1763678908261,29.39441619,136.89,136.82,0.66]
[1763678908430,29.39441619,136.89,136.79,0.2]
[1763678908637,29.39441619,136.89,136.8,0.66]
[1763678908836,36.43823001,136.88,136.8,0.66]
[1763678909156,36.43823001,136.88,136.79,0.2]
[1763678909157,0.14216157,136.88,136.79,0.2]
[1763678909357,36.58039158,136.88,136.79,0.2]
[1763678910140,25.57171037,136.87,136.79,0.2]
[1763678910367,7.30620296,136.87,136.79,0.89]
[1763678910683,3.82640243,136.89,136.81,0.14216157]
[1763678911066,3.82640243,136.89,136.82,0.69]
[1763678911467,44.2416457,136.93,136.82,0.69]
[1763678911663,44.2416457,136.93,136.83,0.14216157]
[1763678911867,44.2416457,136.93,136.83,1.78216157]
[1763678912155,44.2416457,136.93,136.84,0.69]
[1763678912685,44.18164723,136.93,136.84,0.69]
[1763678913583,7.30300153,136.93,136.84,0.69]
[1763678914458,44.16205439,136.93,136.84,0.69]
[1763678915156,7.30300153,136.93,136.84,0.69]
[1763678915705,52.49759132,136.94,136.84,0.69]
[1763678916981,59.80005955,136.94,136.84,0.69]
[1763678917183,4.88169851,136.93,136.84,0.69]
[1763678917494,44.21996791,136.94,136.84,0.69]
[1763678917691,44.21996791,136.94,136.93,6e-08]
[1763678917914,44.21996791,136.94,136.84,0.69]
[1763678918212,7.30246823,136.94,136.84,0.69]
[1763678918380,15.47534726,136.94,136.84,0.69]
[1763678918582,9.98882769,136.93,136.82,0.69]
[1763678919116,62.22641263,136.92,136.82,0.69]
[1763678919499,36.09058842,136.9,136.82,0.69]
[1763678919815,50.01739702,136.91,136.82,0.69]
[1763678920182,58.19027605,136.91,136.82,0.69]
[1763678920700,50.04818043,136.9,136.8,0.69]
[1763678920902,65.56105946,136.9,136.79,0.2]
[1763678921081,62.47593026,136.88,136.79,0.2]
[1763678921692,36.90608808,136.88,136.8,0.69]
[1763678921890,36.00431013,136.9,136.81,0.14216157]
[1763678922304,36.36080269,136.92,136.82,0.69]
[1763678922697,7.30406836,136.91,136.82,0.69]
[1763678923204,18.26017091,136.91,136.82,0.69]
[1763678923789,7.30353491,136.92,136.82,0.69]
[1763678925302,18.26017091,136.91,136.82,0.69]
[1763678925509,25.56423927,136.91,136.82,0.69]
[1763678925689,7.30406836,136.91,136.82,0.69]
[1763678926586,7.30406836,136.91,136.83,0.14216157]
[1763678926791,25.56423927,136.91,136.83,0.14216157]
[1763678927021,25.56423927,136.91,136.82,0.69]
[1763678927022,25.56423927,136.91,136.84,0.69]
[1763678927197,61.6530146,136.91,136.84,0.69]
[1763678927719,54.34894624,136.91,136.82,0.69]
[1763678927933,44.36958941,136.91,136.82,0.69]
[1763678928234,13.90170873,136.9,136.79,0.2]
[1763678928393,13.90170873,136.9,136.8,0.69]
[1763678928394,16.83479763,136.9,136.8,0.69]
[1763678928595,25.00767666,136.9,136.8,0.69]
[1763678928904,13.90170873,136.9,136.8,0.69]
[1763678929328,26.54098499,136.91,136.81,0.14216157]
[1763678929633,4.88675856,136.9,136.83,0.14216157]
[1763678929800,7.30353491,136.92,136.84,0.69]
[1763678930517,104.95683354,136.95,136.85,9.93098926]
[1763678930518,8.17287903,136.95,136.85,9.93098926]
[1763678930725,3.82666079,136.96,136.85,9.78882769]
[1763678931026,36.55198036,136.95,136.86,0.81216157]
[1763678931230,36.55198036,136.95,136.86,0.67]
[1763678931732,25.55863881,136.94,136.86,0.67]
[1763678931910,15.56789855,136.94,136.86,0.67]
[1763678932534,52.11291998,136.94,136.86,0.67]
[1763678932696,36.55198036,136.95,136.86,0.67]
[1763678932899,11.12828229,136.96,136.87,0.14216157]
[1763678933298,29.38178696,136.96,136.88,0.67]
[1763678933934,18.25350467,136.96,136.88,0.67]
[1763678935213,25.55512617,136.96,136.88,0.67]
[1763678936160,7.3016215,136.96,136.88,0.67]
[1763678937153,43.45901057,136.96,136.88,0.67]
[1763678937837,36.8185966,136.95,136.88,0.67]
[1763678938025,54.80853893,136.96,136.88,0.67]
[1763678939432,62.11016043,136.96,136.88,0.67]
[1763678939629,25.55512617,136.96,136.88,0.67]
[1763678940221,7.3016215,136.96,136.88,0.67]
[1763678941343,13.90170873,136.95,136.86,0.67]
[1763678941543,36.03889285,136.94,136.86,0.67]
[1763678941747,25.56050536,136.93,136.86,0.67]
[1763678941952,4.89380373,136.92,136.83,0.67]
[1763678942120,65.54017923,136.93,136.83,0.67]
[1763678942728,8.17287903,136.92,136.83,0.67]
[1763678943079,36.82264875,136.92,136.83,0.67]
[1763678943425,36.78712326,136.92,136.83,0.67]
[1763678944260,18.12096,136.88,136.83,0.67]
[1763678946359,8.12176811,136.88,136.83,0.67]
[1763678946563,43.6665373,136.89,136.83,0.67]
[1763678947973,7.30478847,136.9,136.89,4.84324431]
[1763678948179,7.97478847,136.9,136.8,0.14216157]
[1763678949037,44.78251836,136.9,136.8,0.14216157]
[1763678949575,44.11251836,136.9,136.8,0.14216157]
[1763678949772,0.67,136.89,136.8,0.14216157]
[1763678950278,0.67,136.89,136.81,0.67]
[1763678950574,7.97534323,136.89,136.81,0.58145204]
[1763678950947,0.71,136.88,136.81,0.58145204]
[1763678952041,14.61170873,136.88,136.79,0.2]
[1763678952678,7.30780473,136.84,136.79,0.87]
[1763678952975,18.26706574,136.86,136.84,0.13260011]
[1763678953382,18.26706574,136.86,136.8,0.67]
[1763678953552,0.71,136.85,136.8,0.67]
[1763678954143,4.92554155,136.84,136.8,0.67]
[1763678954347,4.92554155,136.83,136.8,0.67]
[1763678954547,4.92554155,136.82,136.8,0.67]
[1763678954743,4.92554155,136.81,136.8,0.67]
[1763678954978,4.92554155,136.81,136.79,0.2]
[1763678955157,4.92554155,136.8,136.79,0.2]
[1763678956585,13.06856723,136.8,136.79,0.2]
[1763678958084,8.01906965,136.82,136.79,0.2]
[1763678958380,30.0136795,136.82,136.79,0.05201164]
[1763678958684,53.07693586,136.84,136.79,0.05201164]
[1763678959200,36.81281149,136.84,136.79,0.05201164]
[1763678960186,18.12096,136.8,136.79,0.05201164]
[1763678960870,8.14143926,136.8,136.79,0.05201164]
[1763678961053,21.53935459,136.82,136.79,0.73201164]
[1763678961247,43.75836741,136.83,136.79,0.73201164]
[1763678962056,7.30833881,136.83,136.79,0.73201164]
[1763678963191,36.81281149,136.84,136.83,7e-08]
[1763678963366,36.86281149,136.84,136.79,0.73201164]
[1763678965166,6.14255065,136.81,136.79,0.73201164]
[1763678966778,18.12096,136.8,136.79,0.73201164]
[1763678967085,6.14255065,136.81,136.79,0.73201164]
[1763678967284,6.14255065,136.81,136.79,0.05201164]
[1763678967799,6.19255065,136.8,136.74,0.68]
[1763678967964,6.19255065,136.8,136.69,0.2]
[1763678967965,6.14143935,136.77,136.69,0.2]
[1763678968286,0.05,136.78,136.77,8.10284114]
[1763678968485,0.05,136.78,136.77,2.59721854]
[1763678968787,4.96215852,136.78,136.71,0.68]
[1763678968994,4.96215852,136.77,136.71,0.68]
[1763678969173,4.91215852,136.76,136.71,0.68]
[1763678969497,7.31314904,136.74,136.71,0.68]
[1763678970692,17.18294883,136.74,136.71,0.68]
[1763678970892,8.17045936,136.72,136.71,0.68]
[1763678971069,4.91215852,136.73,136.69,0.92]
[1763678971498,4.91215852,136.73,136.7,0.72]
[1763678973080,8.08371702,136.71,136.7,0.72]
[1763678973395,4.91215852,136.73,136.7,0.72]
[1763678975092,9.86979979,136.74,136.7,0.72]
[1763678975301,0.05,136.75,136.66,0.2]
[1763678975302,18.12096,136.69,136.66,0.2]
[1763678975487,18.12096,136.71,136.6,0.72]
[1763678975488,18.12096,136.67,136.6,0.72]
[1763678975799,18.12096,136.65,136.6,0.72]
[1763678976172,0.05,136.66,136.6,0.72]
[1763678976173,18.12096,136.63,136.6,0.72]
[1763678976682,18.12096,136.65,136.6,0.72]
[1763678977301,7.36655421,136.68,136.6,0.72]
[1763678978178,43.74054097,136.68,136.6,0.72]
[1763678978411,36.76938343,136.69,136.6,0.72]
[1763678979097,18.12096,136.65,136.61,0.14216157]
[1763678979297,7.31475385,136.71,136.61,0.14216157]
[1763678979479,36.11888223,136.7,136.63,0.14216157]
[1763678980003,36.11888223,136.7,136.64,0.72]
[1763678980205,43.43466503,136.7,136.64,0.72]
[1763678980577,43.43466503,136.7,136.62,0.72]
[1763678980773,61.72288741,136.7,136.62,0.72]
[1763678982376,148.29933217,136.7,136.62,0.72]
[1763678982577,37.511545,136.69,136.58,0.2]
[1763678982781,86.37398676,136.68,136.58,0.2]
[1763678983004,86.97398676,136.68,136.58,0.2]
[1763678983206,18.12096,136.65,136.58,0.2]
[1763678983385,0.6,136.67,136.65,10.816766]
[1763678983705,0.14216157,136.69,136.58,0.2]
[1763678983706,0.6,136.66,136.58,0.2]
[1763678984285,7.3179656,136.65,136.58,0.2]
[1763678984695,7.3179656,136.65,136.59,0.72]
[1763678985293,8.07739687,136.64,136.59,0.72]
[1763678985605,7.3179656,136.65,136.59,0.72]
[1763678985995,7.9179656,136.65,136.59,0.72]
[1763678986806,26.21287961,136.65,136.59,0.72]
[1763678987004,0.6,136.64,136.58,0.2]
[1763678987308,18.12096,136.62,136.58,0.2]
[1763678987488,4.86607787,136.61,136.58,0.2]
[1763678987685,25.61287961,136.65,136.58,0.2]
[1763678987686,0.6,136.62,136.58,0.92]
[1763678988203,7.91998273,136.62,136.58,0.92]
[1763678988506,4.86607787,136.63,136.62,1.2e-07]
[1763678988805,4.86607787,136.63,136.58,0.92]
[1763678988995,4.86607787,136.63,136.59,0.72]
[1763678989508,25.61895746,136.62,136.58,0.2]
[1763678989803,4.86607787,136.61,136.55,0.92]
[1763678990979,4.86607787,136.61,136.55,0.2]
[1763678991183,4.86607787,136.61,136.56,0.69]
[1763678991407,18.12096,136.6,136.56,0.69]